bitfinex/quotes_ETHUSD_20250622
["timestamp","ask_amount","ask_price","bid_price","bid_amount"]
[1750627740210,8.4491,2182.5,2182.2,0.2838324]
[1750627740515,7.651,2182.6,2182.4,0.0594]
[1750627740713,3.605,2183.0,2182.2,14.80689583]
[1750627740714,1.371,2183.0,2182.2,14.80689583]
[1750627740926,7.652,2182.7,2182.3,0.0594]
[1750627741085,0.8819,2182.9,2182.3,0.0594]
[1750627741286,0.0609,2182.7,2182.2,0.2244324]
[1750627741530,0.821,2182.9,2182.3,0.0594]
[1750627741687,0.821,2183.2,2182.6,0.0594]
[1750627742027,1.70909213,2183.7,2183.3,4.58004009]
[1750627742028,0.821,2183.5,2183.3,4.58004009]
[1750627742191,1.70909213,2183.7,2183.0,0.0594]
[1750627742654,1.70909213,2183.7,2183.6,4.63899333]
[1750627742929,0.7968,2184.5,2184.1,4.57838708]
[1750627743225,0.7968,2184.5,2184.2,0.0594]
[1750627743390,8.11624352,2184.8,2184.2,0.1051782]
[1750627743590,7.658,2184.8,2184.0,0.0594]
[1750627743815,7.658,2184.8,2184.1,4.57852526]
[1750627744116,7.7189,2184.8,2184.0,5.10190823]
[1750627744288,0.7968,2184.9,2184.0,5.10192957]
[1750627744492,0.7968,2184.9,2184.1,10.10517821]
[1750627744692,0.7968,2184.9,2184.2,0.0594]
[1750627744913,0.7968,2184.9,2184.2,0.56957383]
[1750627745100,8.4568,2184.9,2184.2,0.56957383]
[1750627745592,8.4568,2184.9,2184.2,5.14784919]
[1750627745793,8.4568,2184.9,2184.3,4.52811586]
[1750627746423,0.7968,2184.9,2184.3,4.52811586]
[1750627746621,0.7968,2184.9,2184.3,5.50031402]
[1750627747325,0.7968,2184.9,2184.3,5.94900727]
[1750627747628,0.8577,2184.9,2184.4,0.10517548]
[1750627747828,0.8577,2184.9,2184.4,0.0594]
[1750627748000,0.8577,2184.9,2184.3,0.97219816]
[1750627749796,0.8577,2184.9,2184.3,1.01797344]
[1750627749992,0.0609,2184.8,2184.4,0.6165803]
[1750627750330,0.0609,2184.8,2184.2,0.56957383]
[1750627750930,0.0609,2184.8,2184.2,5.14790683]
[1750627751629,0.0609,2184.8,2184.2,5.60568978]
[1750627752947,0.7968,2184.9,2184.3,4.6831577]
[1750627753232,0.7968,2184.9,2184.5,0.0594]
[1750627753594,0.7968,2184.9,2184.4,4.57790137]
[1750627753822,0.7968,2184.9,2184.5,0.45779014]
[1750627754031,7.636,2185.1,2184.6,0.0598]
[1750627754392,7.636,2185.1,2184.5,0.45779014]
[1750627754606,0.0572,2185.0,2184.3,0.0598]
[1750627754826,0.0572,2185.0,2184.4,0.0457684]
[1750627755008,7.636,2185.1,2184.4,0.69225064]
[1750627755205,7.636,2185.1,2184.5,0.0598]
[1750627755901,7.636,2185.1,2184.5,0.10557324]
[1750627756123,7.636,2185.1,2184.5,4.683274]
[1750627757228,7.636,2185.1,2184.6,4.57748724]
[1750627757416,7.636,2185.1,2184.7,0.0598]
[1750627757918,7.636,2185.1,2184.6,4.57748724]
[1750627758124,7.636,2185.1,2184.7,4.6370789]
[1750627758524,7.636,2185.1,2184.7,0.0598]
[1750627760330,10.7009,2185.2,2184.8,0.0598]
[1750627761038,0.7857,2185.2,2184.8,4.63683305]
[1750627762801,7.617,2185.4,2184.9,4.57684788]
[1750627763201,0.0572,2185.3,2184.9,4.57684788]
[1750627763625,0.0572,2185.3,2184.8,4.63679213]
[1750627764149,7.617,2185.4,2184.8,4.63679213]
[1750627764443,0.0572,2185.3,2184.8,4.63679213]
[1750627766022,7.6662,2185.3,2184.8,4.63679213]
[1750627766348,7.6662,2185.3,2184.8,5.64975274]
[1750627766564,0.7937,2185.5,2184.9,0.10556345]
[1750627766742,0.7937,2185.5,2185.0,4.576466]
[1750627767050,0.7937,2185.5,2184.9,0.04576345]
[1750627767051,7.604,2185.7,2185.2,0.0598]
[1750627767356,7.603,2185.7,2185.4,0.0598]
[1750627767551,1.72423572,2186.1,2185.4,11.78654832]
[1750627767837,0.8031,2186.4,2185.7,4.575138]
[1750627768029,8.4623,2186.4,2185.9,0.0598]
[1750627768809,8.4623,2186.4,2185.9,4.63454313]
[1750627769013,0.8603,2186.4,2185.9,4.63454313]
[1750627769219,0.8603,2186.4,2185.9,5.56008556]
[1750627769220,8.4613,2186.4,2185.9,5.56008556]
[1750627769542,8.4613,2186.4,2186.0,0.0598]
[1750627770551,8.4041,2186.4,2186.0,0.0598]
[1750627770856,0.8031,2186.4,2185.9,5.55998993]
[1750627771040,0.8031,2186.4,2185.9,5.50018993]
[1750627771237,0.8031,2186.4,2186.0,5.18438256]
[1750627771440,0.8031,2186.4,2186.0,5.23012276]
[1750627771816,0.8031,2186.4,2186.1,4.63402011]
[1750627772060,9.8582,2186.5,2186.1,4.57422011]
[1750627772353,9.8582,2186.5,2186.0,5.17025392]
[1750627772678,9.8582,2186.5,2186.1,5.71735217]
[1750627772818,0.8603,2186.6,2186.1,1.14301979]
[1750627773022,0.8603,2186.6,2186.1,1.20281979]
[1750627773222,0.8603,2186.6,2186.2,0.0598]
[1750627773429,0.8031,2186.6,2186.1,1.14301979]
[1750627773635,0.0572,2186.5,2186.2,0.62675402]
[1750627774121,0.6072,2186.5,2186.0,0.55001899]
[1750627774321,0.55,2186.5,2186.0,0.55001899]
[1750627774518,0.0572,2186.4,2186.0,0.55001899]
[1750627775157,0.8769,2186.3,2186.0,0.55001899]
[1750627775354,0.8769,2186.3,2185.2,0.0598]
[1750627775355,0.0572,2185.9,2185.2,0.0598]
[1750627775520,11.1577,2185.8,2184.8,4.63669424]
[1750627775722,0.0572,2185.5,2184.8,4.63681002]
[1750627776119,0.0572,2185.5,2184.9,10.0]
[1750627776318,0.8197,2185.6,2185.0,1.463681]
[1750627776537,0.0572,2185.5,2184.9,5.03459725]
[1750627776766,0.0572,2185.5,2184.8,14.6368143]
[1750627776978,0.05437598,2185.5,2184.8,14.6368143]
[1750627777440,0.05437598,2185.5,2184.9,4.57684341]
[1750627778059,0.8221,2185.4,2184.8,4.57703951]
[1750627778261,0.8221,2185.4,2184.9,0.9154301]
[1750627778461,0.8221,2185.4,2184.9,10.9154301]
[1750627778771,0.8221,2185.4,2184.8,4.57703951]
[1750627778949,0.0572,2185.3,2184.8,4.57703951]
[1750627779467,0.8221,2185.4,2184.8,4.57703951]
[1750627779668,0.0572,2185.3,2184.8,4.57703951]
[1750627780443,0.8221,2185.4,2185.0,10.0]
[1750627780873,0.0572,2185.3,2185.0,10.0]
[1750627781168,0.0572,2185.3,2184.9,10.0]
[1750627781361,0.0572,2185.3,2184.9,11.91542841]
[1750627781567,0.0572,2185.3,2184.9,16.49229037]
[1750627781869,0.8221,2185.4,2184.9,16.49229037]
[1750627782173,0.0572,2185.3,2184.9,16.49229037]
[1750627782368,0.8221,2185.4,2184.9,16.49229037]
[1750627782771,0.0572,2185.3,2184.9,16.49229037]
[1750627784084,0.8221,2185.4,2184.9,1.91542841]
[1750627784289,0.0614,2185.3,2184.6,4.63729168]
[1750627784494,0.0614,2185.3,2184.7,10.0]
[1750627785188,0.0614,2185.3,2184.6,14.63721175]
[1750627786284,2.2614,2185.3,2184.6,14.63721175]
[1750627786790,2.2614,2185.3,2184.7,6.49873591]
[1750627787720,2.2614,2185.3,2184.7,1.92148934]
[1750627788056,2.2614,2185.3,2184.7,6.49877191]
[1750627789480,2.2614,2185.3,2184.7,6.49875609]
[1750627790179,2.2614,2185.3,2184.7,1.92148934]
[1750627790578,2.2614,2185.3,2184.7,6.4987403]
[1750627791090,2.2,2185.3,2184.7,6.4987403]
[1750627791291,0.8221,2185.4,2184.9,4.63904275]
[1750627791508,0.8835,2185.4,2185.0,0.0623]
[1750627792377,0.8221,2185.4,2185.0,0.0623]
[1750627793307,0.8221,2185.4,2184.8,0.0623]
[1750627793510,8.3941,2185.4,2184.8,0.0623]
[1750627793717,8.4555,2185.4,2184.7,0.0623]
[1750627793873,0.6114,2185.3,2184.5,5.3974131]
[1750627794078,0.8076,2185.2,2184.5,5.57516029]
[1750627794295,0.8076,2185.2,2184.6,0.0623]
[1750627794492,0.6114,2184.9,2184.3,0.0623]
[1750627795187,0.6114,2184.9,2184.0,0.8198]
[1750627795188,0.6114,2184.7,2184.0,0.0623]
[1750627795390,0.6114,2184.7,2184.1,4.57851851]
[1750627795589,0.6114,2184.7,2184.1,10.9157447]
[1750627795896,0.6114,2184.7,2184.1,0.9157447]
[1750627796281,0.6114,2184.7,2184.2,0.0623]
[1750627797327,0.55,2184.7,2184.1,0.0623]
[1750627797478,8.122,2184.7,2184.1,0.0623]
[1750627798903,8.122,2184.7,2183.8,0.0623]
[1750627799111,0.55,2184.5,2183.8,1.36431]
[1750627799282,0.6114,2184.5,2184.0,10.0623]
[1750627799872,0.55,2184.5,2184.0,0.0623]
[1750627800078,0.8031,2184.6,2182.2,0.9893324]
[1750627800079,0.8031,2184.0,2182.2,0.9893324]
[1750627800381,0.0614,2183.4,2182.6,0.0623]
[1750627800589,0.0614,2183.4,2182.7,0.0623]
[1750627800590,2.138,2183.3,2182.7,0.0623]
[1750627801025,2.138,2183.3,2182.6,0.46440509]
[1750627801319,8.4965,2183.4,2182.9,0.0623]
[1750627801320,0.8031,2183.4,2182.9,0.0623]
[1750627801475,0.8031,2183.4,2182.9,10.0458013]
[1750627801682,0.8031,2183.4,2183.0,0.0623]
[1750627801886,0.8031,2183.4,2183.1,0.0623]
[1750627802396,0.8031,2183.4,2183.0,7.53973081]
[1750627802601,0.7689,2183.6,2183.2,4.5804297]
[1750627802815,0.7689,2183.6,2183.4,0.0623]
[1750627803000,0.7689,2183.7,2183.3,4.68830605]
[1750627803193,0.7689,2183.7,2183.5,0.0623]
[1750627803394,2.138,2183.8,2183.5,0.0623]
[1750627803812,2.138,2183.8,2183.4,5.04883489]
[1750627804116,2.138,2183.8,2183.6,0.0623]
[1750627804487,2.138,2183.8,2183.5,0.0623]
[1750627804906,2.138,2183.8,2183.3,5.04475456]
[1750627804907,2.138,2183.8,2183.4,0.0623]
[1750627805119,2.138,2183.8,2183.5,0.0623]
[1750627807219,2.138,2183.8,2183.4,1.58716546]
[1750627807395,2.138,2183.8,2183.4,6.16705824]
[1750627807799,2.138,2183.8,2183.5,0.0623]
[1750627808309,2.138,2183.8,2183.4,6.16705824]
[1750627808518,2.138,2183.8,2183.6,0.0623]
[1750627810721,10.7643,2184.3,2183.6,0.0623]
[1750627811023,2.2004,2184.1,2183.6,0.10809013]
[1750627813825,2.2004,2184.1,2183.6,0.0623]
[1750627814586,2.139,2184.1,2183.5,6.2978337]
[1750627814792,2.2001,2184.1,2183.6,0.69208337]
[1750627814993,2.139,2184.1,2183.4,4.57992159]
[1750627815192,2.139,2184.1,2183.3,14.58011218]
[1750627815193,0.8763,2184.0,2183.3,14.58011218]
[1750627816421,0.8763,2184.0,2183.4,4.58000392]
[1750627817339,0.55,2183.9,2183.3,10.0]
[1750627817911,0.0611,2183.8,2183.3,10.0]
[1750627818234,0.0611,2183.8,2183.3,11.9223076]
[1750627818396,0.8152,2184.0,2183.4,0.8127]
[1750627818592,0.0611,2183.8,2183.3,16.56462622]
[1750627818797,0.0611,2183.8,2183.3,16.56473544]
[1750627819735,0.0611,2183.8,2183.4,4.57996454]
[1750627820030,0.0611,2183.8,2183.4,4.64226454]
[1750627820260,0.0611,2183.8,2183.4,0.0623]
[1750627820431,9.796,2183.8,2183.4,2.17679824]
[1750627821008,9.8571,2183.8,2183.4,6.7567588]
[1750627821856,9.796,2183.8,2183.4,2.17679824]
[1750627822148,9.796,2183.8,2183.4,2.11449824]
[1750627822317,9.8571,2183.8,2183.4,6.69450921]
[1750627822518,9.796,2183.8,2183.4,6.69450921]
[1750627822716,9.8571,2183.8,2183.4,2.11449824]
[1750627822915,9.8571,2183.8,2183.4,6.69446475]
[1750627823116,0.0611,2183.6,2183.3,10.0]
[1750627824349,0.0611,2183.6,2183.2,10.0]
[1750627824550,0.0611,2183.6,2183.1,0.0623]
[1750627825652,0.0611,2183.6,2183.1,4.64291744]
[1750627825856,0.0611,2183.6,2183.2,4.64273236]
[1750627826061,0.0611,2183.6,2183.2,0.0623]
[1750627826359,0.8315,2183.7,2183.2,4.68840314]
[1750627826559,0.8315,2183.7,2183.2,4.62610314]
[1750627826760,0.8315,2183.7,2183.3,0.0623]
[1750627827055,0.8315,2184.0,2183.3,0.98191682]
[1750627827255,2.183,2183.9,2183.5,4.57980306]
[1750627827456,2.183,2183.9,2183.6,0.0623]
[1750627827656,2.183,2183.9,2183.7,4.64164228]
[1750627827863,2.183,2183.9,2183.7,5.64467681]
[1750627828059,2.183,2183.9,2183.8,4.57917391]
[1750627828463,2.183,2183.9,2183.8,4.64147391]
[1750627828663,0.8024,2184.2,2183.9,4.57896423]
[1750627828827,0.8024,2184.2,2184.0,0.0623]
[1750627829029,9.787,2184.3,2184.0,0.0623]
[1750627829251,9.787,2184.3,2184.1,0.0623]
[1750627829469,2.183,2184.3,2184.1,0.0623]
[1750627830149,0.8024,2184.8,2184.2,0.0623]
[1750627830367,2.183,2184.7,2184.2,4.57820299]
[1750627830659,9.785,2184.7,2184.2,4.57825952]
[1750627830860,9.8461,2184.7,2184.2,5.60889741]
[1750627831063,9.8461,2184.7,2184.3,4.5780747]
[1750627831267,2.183,2184.7,2184.3,4.57799882]
[1750627831478,2.183,2184.7,2184.4,0.0623]
[1750627831696,2.183,2184.7,2184.4,4.64013204]
[1750627831958,2.183,2184.7,2184.4,5.65884932]
[1750627832563,2.183,2184.7,2184.4,1.08097483]
[1750627832799,11.555,2185.3,2184.4,1.01867483]
[1750627832933,0.7572,2185.0,2184.6,0.0623]
[1750627833244,9.781,2185.1,2184.7,0.0623]
[1750627833567,0.7572,2185.2,2184.6,4.57737552]
[1750627833779,0.7572,2185.2,2184.7,4.62300903]
[1750627833973,0.7572,2185.2,2184.8,4.63935228]
[1750627834207,8.3522,2185.2,2184.7,5.54358933]
[1750627834533,8.3522,2185.2,2184.8,0.0623]
[1750627834724,8.3512,2185.2,2184.7,5.54358933]
[1750627835066,7.594,2185.2,2184.8,4.57707799]
[1750627835266,7.594,2185.2,2184.9,0.0623]
[1750627835506,2.183,2185.3,2185.0,0.0623]
[1750627835685,2.2441,2185.3,2184.8,5.58906975]
[1750627835871,2.183,2185.3,2184.8,5.65136975]
[1750627836067,2.183,2185.3,2184.9,4.62261036]
[1750627836270,2.183,2185.3,2185.1,0.0623]
[1750627838107,2.183,2185.3,2185.2,0.0623]
[1750627838266,2.183,2185.3,2185.2,4.63854016]
[1750627838462,0.0611,2186.0,2185.3,4.57598316]
[1750627838463,2.182,2185.8,2185.3,4.57598316]
[1750627838788,7.586,2185.7,2185.4,4.57581064]
[1750627838967,2.182,2185.8,2185.5,0.0623]
[1750627839167,9.768,2185.8,2185.5,4.68365802]
[1750627839394,9.768,2185.8,2185.6,0.0623]
[1750627839666,2.182,2185.8,2185.6,0.0623]
[1750627839999,2.182,2185.8,2185.5,0.7556]
[1750627840346,2.182,2185.8,2185.6,0.68695356]
[1750627840489,2.182,2185.8,2185.6,5.19995729]
[1750627840680,2.182,2185.8,2185.7,0.0623]
[1750627840879,2.182,2185.8,2185.7,4.6374933]
[1750627841090,2.182,2185.8,2185.7,0.0623]
[1750627841402,2.182,2185.8,2185.7,1.12164681]
[1750627841597,0.8083,2186.1,2185.7,1.12164681]
[1750627841598,0.8083,2186.1,2185.7,5.69684011]
[1750627841765,13.2461,2186.2,2185.8,0.1080448]
[1750627841963,7.58,2186.1,2185.8,0.1080448]
[1750627842665,7.577,2186.1,2185.8,0.1080448]
[1750627842874,7.577,2186.1,2185.8,5.31983532]
[1750627843079,7.577,2186.1,2185.8,5.25753532]
[1750627843290,2.182,2186.2,2186.0,4.63682188]
[1750627843495,7.577,2186.3,2186.1,0.0623]
[1750627844014,7.577,2186.3,2186.1,4.63664408]
[1750627844178,2.9903,2186.6,2186.2,4.63244499]
[1750627844373,2.9903,2186.6,2186.2,0.0583]
[1750627844608,2.182,2186.6,2186.3,0.0583]
[1750627845416,2.182,2186.6,2186.3,0.10403265]
[1750627846208,2.182,2186.6,2186.3,0.0583]
[1750627846390,2.182,2186.6,2186.3,0.60943706]
[1750627846592,2.182,2186.6,2186.3,0.66773706]
[1750627846794,0.8649,2187.1,2186.4,0.0583]
[1750627847002,7.576,2187.0,2186.4,5.42102442]
[1750627847216,7.576,2187.0,2186.5,5.17189772]
[1750627847380,7.6326,2187.0,2186.5,5.23019772]
[1750627847583,7.6326,2187.0,2186.5,0.59847289]
[1750627847783,7.6326,2187.0,2186.5,4.63180354]
[1750627848540,7.576,2187.0,2186.6,0.0583]
[1750627850028,10.6199,2187.1,2186.6,4.63160166]
[1750627850192,10.6199,2187.1,2186.6,0.0583]
[1750627850825,10.6199,2187.1,2186.6,4.63160194]
[1750627851030,10.6199,2187.1,2186.6,5.63103302]
[1750627852026,10.6189,2187.1,2186.6,5.63103302]
[1750627852229,10.6189,2187.1,2186.7,4.67711444]
[1750627852430,9.8106,2187.1,2186.7,4.67711444]
[1750627853930,9.8106,2187.1,2186.7,4.63138637]
[1750627854131,9.8106,2187.1,2186.7,5.6563894]
[1750627854628,9.8106,2187.1,2186.7,1.08330303]
[1750627855329,9.8106,2187.1,2186.7,1.02500303]
[1750627856124,0.55,2186.9,2186.1,1.00461537]
[1750627856314,0.0566,2186.8,2186.2,10.0]
[1750627856519,0.7518,2186.6,2186.0,0.7948]
[1750627856826,0.7518,2186.6,2185.8,4.57498316]
[1750627856827,0.0566,2186.5,2185.8,4.57498316]
[1750627857033,0.0566,2186.5,2185.8,10.0]
[1750627857540,0.8094,2186.3,2185.7,0.7948]
[1750627857738,0.0566,2186.1,2185.6,0.45950576]
[1750627857936,0.0566,2186.1,2185.5,0.7535]
[1750627857937,0.0566,2186.0,2185.5,0.7535]
[1750627858145,2.14,2186.1,2185.5,0.7535]
[1750627858447,0.0566,2186.0,2185.5,0.7535]
[1750627858649,2.14,2186.1,2185.5,1.29224834]
[1750627858938,2.14,2186.1,2185.6,4.62113437]
[1750627859165,2.14,2186.1,2185.8,0.0583]
[1750627859346,7.572,2186.2,2185.8,4.67899845]
[1750627859734,7.572,2186.2,2186.0,4.63272146]
[1750627860316,7.572,2186.2,2186.1,4.57435615]
[1750627860639,7.572,2186.2,2186.1,0.99609257]
[1750627861613,7.572,2186.2,2185.9,0.7535]
[1750627861809,7.6286,2186.2,2185.6,15.78243389]
[1750627862015,7.572,2186.2,2185.7,0.04574693]
[1750627862233,0.0566,2186.0,2185.6,0.50215717]
[1750627862548,0.0566,2186.0,2185.6,0.45641024]
[1750627862735,0.0566,2186.0,2185.6,1.578273]
[1750627863325,0.7925,2186.1,2185.6,1.578273]
[1750627863555,0.0566,2186.0,2185.6,1.578273]
[1750627863758,0.0566,2186.0,2185.4,10.7508]
[1750627864175,0.0566,2185.7,2185.0,4.57653991]
[1750627864326,7.572,2185.6,2185.1,4.57643214]
[1750627864655,7.6286,2185.6,2185.2,10.0]
[1750627864818,7.6286,2185.6,2185.0,4.57658597]
[1750627865018,7.572,2185.6,2185.1,0.5385686]
[1750627865255,0.0566,2185.5,2185.1,0.5385686]
[1750627865477,0.0566,2185.3,2184.8,4.57707447]
[1750627865654,0.0566,2185.3,2184.7,5.3468572]
[1750627865822,0.0566,2185.3,2184.8,10.0]
[1750627866522,0.0566,2185.3,2184.7,15.3469274]
[1750627866724,0.0566,2185.3,2184.8,1.99827022]
[1750627866928,2.9284,2185.4,2184.8,1.99827022]
[1750627867249,0.0566,2185.3,2184.8,1.99827022]
[1750627867562,0.0566,2185.3,2184.6,4.57748481]
[1750627867766,0.0566,2185.1,2184.5,1.2215933]
[1750627867934,0.7884,2185.0,2184.4,4.63614584]
[1750627868136,8.3614,2185.0,2184.5,0.54058458]
[1750627868334,0.0566,2184.9,2184.5,10.54058458]
[1750627868786,0.0566,2184.9,2184.5,0.54058458]
[1750627869135,0.0566,2184.8,2184.1,5.34811998]
[1750627869477,0.7884,2184.7,2184.0,0.10407867]
[1750627869634,0.0566,2184.6,2184.0,0.0583]
[1750627869835,0.0566,2184.2,2183.5,0.0583]
[1750627870177,2.14,2184.1,2183.6,10.0]
[1750627870376,2.14,2184.1,2183.7,1.46380717]
[1750627870541,2.14,2184.1,2183.6,4.57955725]
[1750627870884,2.1966,2184.1,2183.6,0.0583]
[1750627871299,2.1966,2184.1,2183.6,10.0583]
[1750627871881,2.1966,2184.1,2183.6,0.0583]
[1750627872039,0.7884,2184.0,2183.6,10.0]
[1750627872233,0.845,2184.0,2183.6,11.5349646]
[1750627873382,0.0566,2183.9,2183.2,10.0]
[1750627873542,0.0566,2183.9,2183.2,14.58036003]
[1750627874179,10.4712,2184.2,2183.7,0.0601]
[1750627874480,10.4712,2184.2,2183.8,4.63913765]
[1750627877690,0.7552,2184.2,2184.0,10.0]
[1750627877835,0.7977,2184.5,2184.2,0.0601]
[1750627878033,2.9367,2184.7,2184.2,0.04577675]
[1750627878250,2.9367,2184.7,2184.4,4.63786896]
[1750627879382,2.9367,2184.7,2184.5,0.10587402]
[1750627879586,0.7977,2185.0,2184.5,10.0]
[1750627879755,0.7977,2185.0,2184.6,0.0601]
[1750627880082,2.139,2185.1,2184.8,4.57703634]
[1750627880758,0.7977,2185.3,2184.8,0.54193363]
[1750627880950,0.7977,2185.3,2184.6,0.7822]
[1750627880951,2.139,2185.4,2185.1,4.57641572]
[1750627881272,2.139,2185.4,2185.1,4.6363822]
[1750627881635,11.8552,2185.8,2185.2,4.576106]
[1750627881850,7.576,2185.7,2185.3,4.57585576]
[1750627882050,7.576,2185.7,2185.4,10.45758558]
[1750627882513,7.576,2185.7,2185.4,15.03340198]
[1750627882785,7.576,2185.7,2185.5,4.57544102]
[1750627883388,7.576,2185.7,2185.5,4.63554102]
[1750627883592,13.9367,2185.8,2185.5,4.63554102]
[1750627883788,13.139,2185.8,2185.6,4.63546076]
[1750627883995,2.139,2185.8,2185.6,4.63546076]
[1750627884695,2.139,2185.8,2185.6,4.63541998]
[1750627884896,7.576,2185.9,2185.6,4.63541998]
[1750627885065,7.576,2185.9,2185.7,4.57514678]
[1750627885665,7.576,2185.9,2185.8,0.0601]
[1750627885989,7.576,2185.9,2185.7,5.77106692]
[1750627885990,7.576,2185.9,2185.7,1.25602014]
[1750627886191,7.576,2185.9,2185.7,0.0601]
[1750627886370,7.576,2185.9,2185.7,4.63528717]
[1750627886894,7.576,2185.9,2185.6,0.7769]
[1750627887065,7.576,2185.9,2185.6,10.7769]
[1750627887464,7.576,2185.9,2185.6,5.35229611]
[1750627887766,7.576,2185.9,2185.6,6.34510697]
[1750627888894,7.576,2185.9,2185.6,6.40520697]
[1750627889461,7.576,2185.9,2185.6,11.82981086]
[1750627890000,7.576,2185.9,2185.6,10.0601]
[1750627893021,7.576,2185.9,2185.6,10.0]
[1750627893706,2.1965,2186.2,2185.7,10.792]
[1750627893707,2.139,2186.2,2185.7,10.792]
[1750627893997,0.0575,2186.1,2185.7,0.8521]
[1750627894184,0.0575,2186.1,2185.6,10.0]
[1750627894503,0.0575,2186.1,2185.6,12.07384253]
[1750627897435,0.0575,2186.1,2185.6,16.64921672]
[1750627897600,0.0575,2186.1,2185.6,16.58911672]
[1750627897800,0.0575,2186.1,2185.6,16.64921672]
[1750627898020,0.0575,2186.1,2185.6,16.58911672]
[1750627898216,0.0575,2186.1,2185.7,1.79821167]
[1750627900235,0.0575,2186.1,2185.7,1.73811167]
[1750627900419,0.0575,2186.1,2185.6,10.0]
[1750627901350,9.711,2186.2,2185.6,10.0]
[1750627901553,2.139,2186.2,2185.6,4.57527603]
[1750627901707,2.1965,2186.2,2185.7,0.10584962]
[1750627902513,2.1965,2186.2,2185.7,0.59708219]
[1750627902702,2.139,2186.2,2185.9,0.0601]
[1750627905528,2.1995,2186.2,2185.7,15.18876475]
[1750627905833,2.1995,2186.2,2185.8,4.57491589]
[1750627906148,2.139,2186.2,2185.9,4.63717138]
[1750627908010,2.139,2186.2,2186.0,4.57456351]
[1750627908407,2.139,2186.2,2185.9,4.63708876]
[1750627908735,2.139,2186.2,2186.0,4.57438198]
[1750627908940,2.139,2186.2,2186.0,4.63678198]
[1750627909105,2.139,2186.2,2186.0,5.55793656]
[1750627909628,2.139,2186.2,2186.0,0.98355458]
[1750627909822,2.139,2186.2,2186.0,5.55793217]
[1750627910026,2.139,2186.2,2186.1,4.57435615]
[1750627910232,2.139,2186.2,2186.0,0.98355458]
[1750627910233,2.139,2186.2,2186.0,5.5580205]
[1750627910609,0.8323,2186.5,2186.1,11.09175241]
[1750627910822,0.8323,2186.5,2186.2,4.57409991]
[1750627911020,0.8323,2186.5,2186.1,1.09175241]
[1750627911440,0.0605,2186.4,2186.1,1.09175241]
[1750627911652,0.0605,2186.4,2186.1,5.66593864]
[1750627911858,11.0,2186.7,2186.1,5.66593864]
[1750627911859,14.0268,2186.7,2186.3,4.57383161]
[1750627912064,10.0,2187.3,2186.4,14.57360906]
[1750627912065,0.8323,2187.1,2186.4,14.57360906]
[1750627912215,0.0605,2186.9,2186.4,10.0]
[1750627912420,0.8928,2186.8,2186.4,10.0]
[1750627912622,0.8928,2186.8,2186.5,1.45738546]
[1750627914159,0.8928,2186.8,2186.2,4.57407001]
[1750627914160,0.0605,2186.7,2186.2,10.0]
[1750627914362,0.0605,2186.7,2186.2,10.0624]
[1750627914750,0.0605,2186.7,2186.2,0.0624]
[1750627915264,0.8323,2186.8,2186.1,0.0624]
[1750627915467,2.134,2187.0,2186.1,0.0624]
[1750627915468,2.9663,2187.0,2186.4,4.57360605]
[1750627915625,2.9663,2187.0,2186.5,10.04572849]
[1750627915825,2.9663,2187.0,2186.6,0.0624]
[1750627916234,3.0268,2187.0,2186.6,0.0624]
[1750627916439,3.0268,2187.0,2186.6,11.60904195]
[1750627916870,7.567,2187.2,2186.9,10.0]
[1750627916871,0.8323,2187.2,2186.9,10.0]
[1750627917066,0.8928,2187.2,2186.9,10.0]
[1750627917247,0.8323,2187.2,2186.9,10.0]
[1750627917561,0.8323,2187.2,2187.0,0.54941261]
[1750627921247,0.83,2187.4,2187.0,0.54941261]
[1750627921839,0.83,2187.4,2187.0,0.61181261]
[1750627922038,0.7695,2187.4,2187.0,0.61181261]
[1750627922440,0.83,2187.4,2187.0,0.61181261]
[1750627922641,0.83,2187.4,2187.1,0.5184488]
[1750627923068,0.83,2187.4,2187.0,0.54941261]
[1750627923069,0.0605,2187.3,2187.0,0.54941261]
[1750627923438,0.7695,2187.4,2187.0,0.54941261]
[1750627923753,0.0605,2187.3,2187.0,0.54941261]
[1750627924140,0.0605,2187.3,2186.6,16.57899985]
[1750627924524,0.8259,2187.2,2186.6,11.54664195]
[1750627924728,0.0605,2187.1,2186.6,11.54664195]
[1750627924957,0.8259,2187.2,2186.6,11.54664195]
[1750627925377,0.8259,2186.9,2186.3,10.0]
[1750627925559,2.9589,2186.9,2186.3,10.0]
[1750627925983,0.0605,2186.8,2186.3,10.0]
[1750627926269,0.0605,2186.8,2186.3,10.0624]
[1750627926468,0.0605,2186.8,2186.3,0.0624]
[1750627926764,0.0605,2186.8,2186.0,0.8221]
[1750627926765,0.0605,2186.7,2186.0,0.8221]
[1750627927145,0.8259,2186.6,2186.0,10.8221]
[1750627927346,0.8864,2186.6,2186.0,10.8221]
[1750627927542,0.8864,2186.6,2186.0,10.7597]
[1750627927748,0.6105,2186.3,2185.4,0.7807]
[1750627927949,0.0605,2185.9,2185.3,4.63829748]
[1750627928137,0.0605,2185.9,2185.3,1.06194031]
[1750627928461,0.0605,2185.9,2185.3,10.96194031]
[1750627928778,0.0605,2185.6,2185.0,4.57649549]
[1750627929137,2.9003,2185.7,2185.1,10.0]
[1750627929330,0.0605,2185.6,2185.1,10.0]
[1750627929537,0.7673,2185.7,2185.0,4.57665903]
[1750627929737,0.7673,2186.0,2185.7,4.57513135]
[1750627930042,2.133,2186.1,2185.8,0.45751314]
[1750627930242,2.133,2186.1,2185.9,4.57477325]
[1750627930446,8.3918,2186.4,2185.9,4.57477325]
[1750627930644,2.142138,2186.9,2186.1,0.7807]